{"text_format":"2","workbook":"xlsx","n_sheets":5,"sheets":["Общие сведения","Показатели","Цели оценки","Аффилированные организации","Бланк подтверждения"],"not_rendered":{"charts":0,"images":1,"macros":0,"external_links":0,"defined_names":0,"comments":2,"pivot_tables":0},"unopened":[],"bounds":{"document_bytes":16777216,"sheet_cells":100000,"run_cost":"one","rows_first":2000,"rows_last":500,"rows_between":2000,"halvings":0,"cell_chars":16384,"cell_head_chars":4096},"cells_cut":0,"cells_raw":0,"read":"whole","date_system":"1900"}

{"sheet":"Общие сведения","index":0,"n_rows":119,"n_cols":4,"rows_kept":119,"cut":false,"hidden":false,"merged":[[85,1,85,2],[81,1,81,2],[16,2,18,2],[31,0,33,0],[68,2,70,2],[73,0,74,0],[7,2,8,2],[11,2,13,2],[25,0,25,2],[9,0,9,2],[14,0,14,2],[72,0,72,2],[73,2,79,2],[89,0,89,2],[83,1,83,2],[84,0,85,0],[34,1,34,2],[35,1,35,2],[34,0,35,0],[88,1,88,2],[67,0,67,2],[71,0,71,2],[80,0,80,2],[82,1,82,2],[81,0,82,0],[87,0,87,2],[86,1,86,2],[37,0,38,0],[84,1,84,2],[0,0,0,2],[10,0,10,2],[1,0,1,2],[75,0,76,0],[19,0,19,2],[20,2,21,2],[22,0,22,2],[23,0,24,0],[26,0,27,0],[28,0,29,0],[2,0,2,2],[3,0,3,2],[4,0,4,2],[5,0,5,2],[15,0,15,2],[6,0,6,2],[118,0,118,2],[117,0,117,2],[115,0,116,0],[90,0,91,0],[109,0,109,2],[108,1,108,2],[102,0,102,2],[95,0,95,2],[107,0,107,2],[99,0,100,0],[103,0,104,0],[110,0,113,0],[114,0,114,2],[96,0,97,0]]}
["ЭЛЕКТРОННАЯ АНКЕТА RAEX (РАЭКС-АНАЛИТИКА)\n\"РЭНКИНГИ ОЦЕНОЧНЫХ КОМПАНИЙ РОССИИ\""]
["ВНИМАНИЮ УЧАСТНИКОВ:"]
["При одновременном участии в рэнкингах оценочных организаций и в рэнкингах оценочных групп нужно заполнить две анкеты: анкета организации и анкета группы."]
["В целях сопоставимости данных для расчёта темпов роста объёма выручки и численности оценщиков показатели за 2021 год указываются с учётом состава (контура) группы в 2022 году."]
["При расхождении показателей выручки в анкете и информационных системах (СПАРК, ГИР БО, реестры СРО), организатор рэнкингов отдаёт приоритет показателям, отражённым в информационных системах."]
["Начиная с 2021 года в рэнкингах в качестве справочной информации отражается информация о среднесписочной численности сотрудников компании за исследуемый период согласно форме расчётов по страховым взносам."]
["Методология рэнкингов делового потенциала обновляется ежегодно. \nПожалуйста ознакомьтесь с принципами составления рэнкингов (см. файл metod.doc)."]
["1. Наименование головной организации (с указанием организационно-правовой формы)."]
["2. ИНН организации."]
[]
["3. Адрес организации."]
["Фактический адрес."]
["Юридический адрес организации."]
["Почтовый адрес (для отправки документов курьерской службой)."]
[]
["4. Контактная информация."]
["Номер телефона с указанием городского кода."]
["Электронный адрес."]
["Адрес интернет-сайта."]
[]
["5. Период (год), с которого Ваша компания ведет оценочную деятельность."]
["6. Укажите, пожалуйста, международные профессиональные объединения, ассоциации, членом которых является Ваша организация."]
[]
["7. Число участников группы (головная организация и аффилированные лица), осуществляющих оценочную деятельность (ПРИЗНАКИ АФФИЛИРОВАННОСТИ отражены в файле metod.doc или instruct.doc).","На 31.12.2021","На 31.12.2022"]
[]
["Блок \"Масштаб бизнеса\""]
["8.* (СПРАВОЧНО) Суммарная выручка оценочной компании или группы от осуществления всех видов деятельности (в рублях, без НДС, согласно форме №2 бухгалтерской отчётности).","За 2021 год","За 2022 год"]
[null,null,{"$f":"Показатели!AB14","v":0},"заполняется автоматически из листа \"Показатели\""]
["8.1* Суммарная выручка оценочной организации или группы ОТ ОСУЩЕСТВЛЕНИЯ ОЦЕНОЧНОЙ ДЕЯТЕЛЬНОСТИ (без учёта выручки от аудиторских и консалтинговых услуг, а также других видов деятельности, не имеющих отношения к оценке, и без учёта внутригрупповых доходов (в рублях, без НДС, исключая внутригрупповые доходы из пункта 8.2).","За 2021 год","За 2022 год"]
[null,null,{"$f":"Показатели!AB11","v":0},"заполняется автоматически из листа \"Показатели\""]
["8.2* (СПРАВОЧНО) Внутригрупповой доход (выручка от операций между участниками группы; этот доход не является выручкой от оценки, указанной в пункте 8.1.)."]
["8.3 (ДЛЯ АНАЛИТИКИ) Суммарная выручка от оценки за первые шесть месяцев 2021, 2022 и 2023 гг. (в рублях; информация запрашивается только для общих расчетов по рынку).","За 6 месяцев 2021 года"]
[null,"За 6 месяцев 2022 года"]
[null,"За 6 месяцев 2023 года"]
["8.4 Лицензия / право на работу с государственной тайной (да / нет; наличие подтверждается соответствующим документом или ссылкой на сайт).","По состоянию на 31.12.2022"]
[]
[]
["9.* Среднесписочная численность сотрудников согласно форме расчётов по страховым взносам. Для группы компаний приводятся суммарные сведения по головной компании и аффилированным лицам, осуществляющим оценочную деятельность.","За 2021 год","За 2022 год"]
[]
["9.1* Численность оценщиков (членов оценочного СРО). Для группы компаний приводятся суммарные сведения головной оценочной компании и аффилированных лиц группы, осуществляющих оценочную деятельность. Для подтверждения соответствующей информации предоставляется справка / выписка СРО о периоде и характере работы оценщика в компании (основное место или по совместительству). Без подтверждения, агентство вправе не учитывать анкетную информацию о численности оценщиков.","На 31.12.2021","На 31.12.2022"]
["СМАО (Саморегулируемая межрегиональная ассоциация оценщиков​)"]
["из них по основному месту работы"]
["АРМО (НП \"СРО АССОЦИАЦИИ РОССИЙСКИХ МАГИСТРОВ ОЦЕНКИ\"​)"]
["из них по основному месту работы"]
["РОО (ООО \"Российское общество оценщиков\"​)"]
["из них по основному месту работы"]
["СОЮЗ (Ассоциация Саморегулируемая организация \"СОЮЗ\"​)"]
["из них по основному месту работы"]
["МСО (Ассоциация \"Межрегиональный союз оценщиков\"​)"]
["из них по основному месту работы"]
["НКСО (Ассоциация СРО \"Национальная коллегия специалистов-оценщиков\"​)"]
["из них по основному месту работы"]
["ОПЭО (МСНО-НП \"Общество профессиональных экспертов и оценщиков\"​)"]
["из них по основному месту работы"]
["СПО (СРО \"Ассоциация оценщиков \"Сообщество профессионалов оценки\"​)"]
["из них по основному месту работы"]
["Экспертный совет (Ассоциация \"СРО \"Экспертный совет\"​)"]
["из них по основному месту работы"]
["ДСО (НП СРО \"Деловой Союз Оценщиков\"​)"]
["из них по основному месту работы"]
["РАО (СРО \"Региональная ассоциация оценщиков​\")"]
["из них по основному месту работы"]
["СВОД (НП СРО \"Свободный Оценочный Департамент\"​)"]
["из них по основному месту работы"]
["СФСО (СРО \"Союз \"Федерация Специалистов Оценщиков\"​)"]
["из них по основному месту работы"]
["Итого:",{"$f":"B65+B63+B61+B59+B57+B55+B53+B51+B49+B47+B45+B43+B41","v":0},{"$f":"C65+C63+C61+C59+C57+C55+C53+C51+C49+C47+C45+C43+C41","v":0}]
[]
["10*. Величина страхового покрытия ответственности (в рублях, без округления).","На 31.12.2022\n(Страховка, или сумма страховок, действующих на эту дату. Не учитываются страховки, начинающие свое действие в 2023 году)"]
["Величина страхового покрытия ответственности оценщиков (членов СРО оценщиков), учтённых в пункте №9.1 (сумма в рублях, без округления)."]
["Величина страхового покрытия ответственности компании (юридического лица). Для группы оценочных компаний указывается общая сумма страховок юридических лиц, входящих в группу оценочных компаний (сумма в рублях, без округления)."]
["Блок \"Квалификация\""]
["11*. Квалификация оценщиков."]
["Количество международных квалификаций в области оценки у оценщиков из приводимого перечня: RICS, TEGoVA, ECI, EECO, IACVA, ASA, CCIM.","За весь стаж работы оценщиков, работающих в компании на 31.12.2022"]
[]
["Число квалификационных аттестатов у оценщиков, полученных в результате сдачи единого квалификационного экзамена (учитываются аттестаты только тех оценщиков, которые обозначены в пункте №9.1).","По состоянию на 31.12.2022"]
[]
["Численность оценщиков -- членов экспертного совета СРО."]
["Численность оценщиков -- членов дисциплинарного комитета СРО."]
["Численность оценщиков со стажем от 10 лет и наличием трёх квалификаций (квалификационный экзамен)."]
["Блок \"Репутация\""]
["12. Аккредитации и отборы федерального уровня. Укажите, пожалуйста, отборы / аккредитации федерального уровня, которые прошла ваша организация, из числа проводимых следующими организаторами в 2022 году (подробное описание аккредитаций см. файле metod.doc):\n1. АСВ (бизнес, НМА);\n2. АСВ (недвижимое и движимое имущество);\n3. \"Газпром\" (аккредитация или ее продление);\n4. \"Дом.РФ\" (земельные участки);\n5. \"Интер РАО\" (имущественные активы);\n6. \"Интер РАО\" (бизнес и акционерный капитал);\n7. ЛУКОЙЛ (аккредитация или ее продление);\n8. \"Промсвязьбанк\" (реестр, 2022 год, за исключением ипотечных сделок с физ. лицами);\n9. \"Росатом\" (лот 1);\n10. \"Росатом\" (лот 2);\n11. \"Росатом\" (лот 3);\n12. \"Росатом\" (лот 4);\n13. \"Роснефть\" (аккредитация или ее продление);\n14. \"Ростелеком\" (недвижимость);\n15. \"Сбербанк\" (оценка крупных комплексов недвижимости и девелоперских проектов);\n16. \"Сбербанк\" (оценка бизнеса и активов крупных предприятий);\n17. \"Сбербанк\" (сегмент: для работы с не крупнейшими клиентами);\n18. Банк \"ТРАСТ\" (постквалификационный и дополнительный набор).\nПри заполнении справа необходимо привести названия из приведённого перечня. В рэнкинге учитываются только подтвержденные участником отборы / аккредитации.","За 2022 год"]
[null,"Приведите, пожалуйста, названия отборов и аккредитаций, конкурсов, которые прошла ваша компания из числа приведённых в ячейке слева"]
["Итого: количество аккредитаций, отборов, конкурсов федерального уровня"]
["Укажите, пожалуйста, имеющиеся у Вашей организации (или её оценщиков) публичные (открытые) национальные и / или международные премии, награды за заслуги в области оценки или в смежной с оценкой области (критерий учитывается только при предоставлении соответствующих подтверждающих документов).","!New: За 2022, 2021 и 2022 годы"]
[null,"Укажите, пожалуйста, название премий, наград"]
["Итого: количество наград и премий"]
["Справочная информация"]
["13. (СПРАВОЧНО) Наличие в компании национальной или международной системы менеджмента качества (да / нет). Будет отражено в рэнкинга в качестве справочной информации (при документальном подтверждении) и не учитывается при расчёте коэффициента рейтингового функционала."]
[]
["14. Общее количество отчётов по оценке.","За 2021 год","За 2022 год"]
[null,null,{"$f":"Показатели!AD11","v":0},"заполняется автоматически из листа \"Показатели\""]
["-- количество отчётов по оценке объектов с балансовой стоимостью от 1 млрд. рублей",null,{"$f":"Показатели!AE11","v":0},"заполняется автоматически из листа \"Показатели\""]
["-- количество число отчётов по оценке объектов государственного сектора",null,{"$f":"Показатели!AF11","v":0},"заполняется автоматически из листа \"Показатели\""]
["-- количество число отчётов по оценке объектов ВПК (ОПК)",null,{"$f":"Показатели!AG11","v":0},"заполняется автоматически из листа \"Показатели\""]
[]
["15. Объём выручки: оценка при кредитовании (юридические лица) (в рублях, без НДС).","За 2021 год","За 2022 год"]
[]
["Количество отчётов"]
["15.1. Объём выручки: оценка при ипотечном кредитовании (в рублях, без НДС).","За 2021 год","За 2022 год"]
[]
["Количество отчётов"]
[]
["16. Объём выручки: оценка в целях оспаривания результатов государственной кадастровой оценки недвижимости (в рублях, без НДС).","За 2021 год","За 2022 год"]
[]
["Количество отчётов"]
["Количество проектов реализованных в пользу заказчика"]
[]
["17. (ДЛЯ RAEX) Пожалуйста, укажите из Вашей практики организации, которые в процедурах отбора, одним из требований указывают участие в рэнкингах, проводимых рейтинговым агентством RAEX (ООО \"РАЭКС-Аналитика\")."]
[]
["18. Контактная информация для взаимодействия.","Должность","Ф.И.О."]
[]
[null,"Номер телефона","E-mail"]
[]
[]
["19. Должность и ФИО руководителя оценочной компании.","Должность","Ф.И.О."]
[]
["Пояснения к пунктам помеченным (*) смотрите в комментариях к анкете в файле instruct.doc"]
["Пожалуйста, перейдите к заполнению следующего листа"]

{"sheet":"Показатели","index":1,"n_rows":15,"n_cols":34,"rows_kept":15,"cut":false,"hidden":false,"merged":[[14,0,14,33],[0,0,0,33],[11,1,11,26],[12,1,12,26],[13,1,13,26],[11,29,13,33],[1,0,1,33]]}
["Этот лист является обязательным для заполнения. Пояснения смотрите в комментариях к анкете в файле instruct.doc"]
["Для отражения практики Вашей компании, укажите выручку от оценочных услуг, предоставленных предприятиям перечисленных отраслей экономики за 2022 год (без учета НДС, согласно форме №2). Отраслевую структуру выручки нужно приводить без учета выручки, полученной от услуг и видов деятельности не относящихся к оценке, и без учета внутригрупповых оборотов (п. 8.2 лист \"Общие сведения\"). Результат в строке \"Итого по всем видам деятельности\" (ячейка T14) в процентах = 100% (пояснение см. в файле instruct.doc). Если Ваша компания участвовала в проекте \"Российский аудит и консалтинг, 2022 год\", то структура выручки от оценочной деятельности должна соответствовать структуре, приведенной Вами в рамках этого проекта."]
[" Виды услуг / отрасли экономики","Агропромышленный\nкомплекс","Легкая промышленность","Лесная,\nдеревообрабатывающая и\n целлюлозно-бумажная\n промышленность","Машиностроение","Металлургический комплекс\n(в т.ч. Угольная\nпромышленность)","Нефтяная и\n нефтегазовая\n промышленность","Пищевая\n промышленность","Промышленность\nдрагоценных металлов и алмазов","Промышленность строительных\n материалов","Фармацевтика","Химический комплекс\n(в т.ч. нефтехимическая\nпромышленность)","Электроэнергетика","Строительство и девелопмент","Торговля","Транспорт","Связь","Банки","Страховые компании","Лизинговые компании","Биржи, инвестиционные компании","НПФ","Государственное управление","ЖКХ","ИТ","Здравоохранение","Прочие отрасли\n или виды экономической\nдеятельности","Всего по видам услуг (руб.)","Доля в совокупной выручке (%)","Общее число отчётов по оценке","В т.ч. отчёты по оценке объектов с балансовой стоимостью более 1 млрд рублей","В т.ч. отчёты по оценке объектов госсектора","В т.ч. отчёты по оценке объектов ВПК (ОПК)","Доля выручки (%) от оказания оценочных услуг иностранным компаниям"]
["Оценка бизнеса и ценных бумаг\n(выручка, руб.)",{"$nulls":26},{"$f":"SUM(B4:AA4)","v":0},{"$f":"IF(AB14=0,\" \",AB4/AB14)","v":" "}]
["Оценка недвижимого имущества\n(выручка, руб.) ",{"$nulls":26},0,{"$f":"IF(AB14=0,\" \",AB5/AB14)","v":" "}]
["Оценка оборудования и транспортных средств (выручка, руб.)",{"$nulls":26},0,{"$f":"IF(AB14=0,\" \",AB6/AB14)","v":" "}]
["Переоценка активов / основных фондов (в т.ч. в связи с МСФО) (выручка, руб.)",{"$nulls":26},0,{"$f":"IF(AB14=0,\" \",AB7/AB14)","v":" "}]
["Оценка инвестиционных проектов\n(выручка, руб.)",{"$nulls":26},0,{"$f":"IF(AB14=0,\" \",AB8/AB14)","v":" "}]
["Оценка нематериальных активов и интеллектуальной собственности\n(выручка, руб.) ",{"$nulls":26},0,{"$f":"IF(AB14=0,\" \",AB9/AB14)","v":" "}]
["Другие виды оценки\n(выручка, руб.)",{"$nulls":26},0,{"$f":"IF(AB14=0,\" \",AB10/AB14)","v":" "}]
["Всего от оценочной деятельности\n(выручка, руб.): ",{"$f":"B4+B5+B6+B7+B8+B9+B10","v":0},0,0,0,0,0,0,0,0,null,0,0,0,0,0,0,0,0,0,0,0,0,0,0,0,0,{"$f":"AB4+AB5+AB6+AB7+AB8+AB9+AB10","v":0},{"$f":"SUM(AC4:AC10)","v":0},0,0,0,0,0]
["Аудит и консалтинг",{"$nulls":26},{"$f":"B12","v":0},{"$f":"IF(AB14=0,\" \",AB12/AB14)","v":" "}]
["Другие виды деятельности ",{"$nulls":26},{"$f":"B13","v":0},{"$f":"IF(AB14=0,\" \",AB13/AB14)","v":" "}]
["Итого по всем видам деятельности:",{"$nulls":26},{"$f":"AB11+AB12+AB13","v":0},{"$f":"SUM(AC11:AC13)","v":0}]
[" После того, как эта таблица будет заполнена, пожалуйста, перейдите к заполнению следующего листа."]

{"sheet":"Цели оценки","index":2,"n_rows":12,"n_cols":13,"rows_kept":12,"cut":false,"hidden":false,"merged":[[0,0,0,12],[1,0,1,12],[11,0,11,12]]}
["Этот лист является обязательным для заполнения, пожалуйста, заполните этот лист."]
["В соответствующих ячейках таблицы укажите объём выручки за 2022 год (без учёта НДС, согласно форме №2), заработанный Вашей компанией (или группой, если участвует группа) от предоставления оценочных услуг в зависимости от целей оценки. Выручку необходимо структурировать без учёта доходов от услуг и деятельности не относящихся к оценке, а также без учёта внутригрупповых оборотов. Обратите, пожалуйста, внимание, что сумма выручки по каждому направлению оценки в этом листе должна соответствовать сумме по аналогичному направлению оценки в листе \"Показатели\"."]
[" Направления оценки / цели оценки","Организация и реструктуризация бизнеса","Кредитование,\nзалоги","Страхование","Аренда","Купля / продажа, сделки по слияниям и поглощениям","Приватизация","Банкротство, ликвидация","Ипотека","Оспаривание результатов государственной кадастровой оценки","Другие ситуации (укажите какие)","Доля в совокупной выручке (%)","Всего по видам услуг (руб.)"]
["Оценка бизнеса и ценных бумаг",{"$nulls":10},{"$f":"IF(M11=0,\"\",M4/M11)","v":""},{"$f":"SUM(B4:K4)","v":0}]
["Оценка недвижимого имущества ",{"$nulls":10},{"$f":"IF(M11=0,\"\",M5/M11)","v":""},{"$f":"SUM(B5:K5)","v":0}]
["Оценка оборудования и транспортных средств",{"$nulls":10},{"$f":"IF(M11=0,\"\",M6/M11)","v":""},0]
["Переоценка активов / основных фондов (в т.ч. в связи с МСФО)",{"$nulls":10},{"$f":"IF(M11=0,\"\",M7/M11)","v":""},0]
["Оценка инвестиционных проектов ",{"$nulls":10},{"$f":"IF(M11=0,\"\",M8/M11)","v":""},0]
["Оценка нематериальных активов и интеллектуальной собственности ",{"$nulls":10},{"$f":"IF(M11=0,\"\",M9/M11)","v":""},0]
["Другие виды оценки (укажите, пожалуйста, здесь, какие именно)",{"$nulls":10},{"$f":"IF(M11=0,\"\",M10/M11)","v":""},0]
["Всего по оценочной деятельности: ",{"$f":"SUM(B4:B10)","v":0},0,0,0,0,0,0,0,0,0,{"$f":"SUM(L4:L10)","v":0},0]
[" После того, как эта таблица будет заполнена, пожалуйста, перейдите к заполнению следующего листа."]

{"sheet":"Аффилированные организации","index":3,"n_rows":4,"n_cols":6,"rows_kept":4,"cut":false,"hidden":false,"merged":[[2,0,2,5],[1,0,1,5],[0,0,0,5]]}
["Этот лист является обязательным для заполнения. Пояснения смотрите в комментариях к анкете в файле metod.doc"]
["Укажите, пожалуйста, состоящие в Вашей группе российские аффилированные компании, осуществляющие оценочную деятельность. Приведите организации по одной в каждой строке, с учетом признаков аффилированности, рассматриваемых в рамках методики проекта:\n-- дочерние и зависимые общества (деятельность которых относится к оценке) с долей в головной или управляющей компании, равной или больше 20%;\n-- учредитель или совладелец головной оценочной (или управляющей) компании (доля не менее 20%) является учредителем или совладельцем (не менее 20%) других компаний, относящихся к оценке;\n-- учредитель или совладелец головной оценочной (или управляющей) компании (доля не менее 20%) является руководителем (единоличный исполнительный орган) других компаний, которые относятся к оценке;\n-- руководитель (единоличный исполнительный орган) головной оценочной (или управляющей) компании также является действующим руководителем (единоличный исполнительный орган) в других компаниях, относящихся к оценке."]
[" После того, как эта таблица будет заполнена, пожалуйста, перейдите к заполнению следующего листа"]
["№","Наименование организации","Вид деятельности","ИНН","Город","Признак аффилированности\n(см. выше или в файле instuct.doc)"]

{"sheet":"Бланк подтверждения","index":4,"n_rows":61,"n_cols":3,"rows_kept":61,"cut":false,"hidden":false,"merged":[[0,0,0,2],[2,0,2,2],[6,0,6,2],[5,0,5,2],[4,0,4,2],[1,0,1,2],[3,0,3,2],[25,1,25,2],[19,1,19,2],[18,1,18,2],[17,1,17,2],[13,1,13,2],[21,0,21,2],[29,1,29,2],[7,0,7,2],[26,1,26,2],[27,1,27,2],[8,0,8,2],[12,1,12,2],[14,1,14,2],[20,1,20,2],[15,1,15,2],[22,1,22,2],[23,1,23,2],[24,0,24,2],[28,1,28,2],[11,1,11,2],[16,1,16,2],[10,1,10,2]]}
["Куда: RAEX (ООО \"РАЭКС-Аналитика\"); appraiser@raex-a.ru; тел.: (495) 617-07-77; www.raex-rr.com"]
[]
[{"$f":"\"От:  \"&'Общие сведения'!B8&\"; \"&'Общие сведения'!B9&\"; \"&'Общие сведения'!B18&\"; \"&'Общие сведения'!B19&\"\"","v":"От:  ; ; ; "}]
[]
["БЛАНК ПОДТВЕРЖДЕНИЯ "]
[]
["Настоящим подтверждаем достоверность данных, переданных в адрес ООО \"РАЭКС-Аналитика\""]
["в том числе суммарную выручку (в рублях, без НДС) от оценочной деятельности по итогам 2022 года:"]
[{"$f":"'Общие сведения'!C30","v":0}]
[]
["Масштаб бизнеса","На 31.12.2022"]
["Число оценщиков (члены СРО оценщиков)",{"$f":"'Общие сведения'!C67","v":0}]
["Сумма страховки ответственности штатных оценщиков (членов СРОО)",{"$f":"'Общие сведения'!B70","v":0}]
["Сумма страховки ответственности компании (группы)",{"$f":"'Общие сведения'!B71","v":0}]
["Лицензия / право на работу с государственной тайной в 2022 году",{"$f":"'Общие сведения'!B36:C36","v":0}]
["Квалификация","На 31.12.2022"]
["Международные квалификации (всего)",{"$f":"'Общие сведения'!B75","v":0}]
["Квалификационные аттестаты (единый квалификационный экзамен)",{"$f":"'Общие сведения'!B77","v":0}]
["Оценщики: экспертный совет СРО",{"$f":"'Общие сведения'!B78","v":0}]
["Оценщики: дисциплинарный комитет СРО",{"$f":"'Общие сведения'!B79","v":0}]
["Оценщики: стаж от 10 лет и наличие трёх квалификаций",{"$f":"'Общие сведения'!B80","v":0}]
["Репутация"]
["Число аккредитаций и отборов федерального уровня (за 2022 год)",{"$f":"'Общие сведения'!B84:C84","v":0}]
["Число национальных и / или зарубежных премий, наград в области оценки (за 2020, 2021 и 2022 годы)",{"$f":"'Общие сведения'!B87:C87","v":0}]
["Справочные показатели"]
["Число аффилированных компаний в группе на 31.12.2022",{"$f":"'Общие сведения'!C25","v":0}]
["Отчёты по оценке за 2022 год",{"$f":"'Общие сведения'!C92","v":0}]
["Отчёты по оценке объектов стоимостью более 1 млрд. рублей за 2022 год",{"$f":"'Общие сведения'!C93","v":0}]
["Отчёты по оценке объектов госсектора за 2022 год",{"$f":"'Общие сведения'!C94","v":0}]
["Отчёты по оценке объектов ВПК (ОПК) за 2022 год",{"$f":"'Общие сведения'!C95","v":0}]
["Направления оценочных услуг","Доля выручки","За 2022 год"]
["Оценка бизнеса и ценных бумаг",{"$f":"Показатели!AC4","v":" "},{"$f":"Показатели!AB4","v":0}]
["Оценка недвижимого имущества",{"$f":"Показатели!AC5","v":" "},{"$f":"Показатели!AB5","v":0}]
["Оценка оборудования и транспортных средств",{"$f":"Показатели!AC6","v":" "},{"$f":"Показатели!AB6","v":0}]
["Переоценка активов / основных фондов (в том числе в целях МСФО)",{"$f":"Показатели!AC7","v":" "},{"$f":"Показатели!AB7","v":0}]
["Оценка инвестиционных проектов",{"$f":"Показатели!AC8","v":" "},{"$f":"Показатели!AB8","v":0}]
["Оценка НМА и интеллектуальной собственности",{"$f":"Показатели!AC9","v":" "},{"$f":"Показатели!AB9","v":0}]
["Другие виды оценки",{"$f":"Показатели!AC10","v":" "},{"$f":"Показатели!AB10","v":0}]
["Всего по оценочной деятельности:",{"$f":"Показатели!AC11","v":0},{"$f":"Показатели!AB11","v":0}]
["Аудит и консалтинг",{"$f":"Показатели!AC12","v":" "},{"$f":"Показатели!AB12","v":0}]
["Другие виды деятельности",{"$f":"Показатели!AC13","v":" "},{"$f":"Показатели!AB13","v":0}]
["Итого по всем видам деятельности:",{"$f":"Показатели!AC14","v":0},{"$f":"Показатели!AB14","v":0}]
["Цели оценки","Доля выручки","За 2022 год"]
["Организация и реструктуризация бизнеса",{"$f":"IF(C54=0,\" \",C44/C54)","v":" "},{"$f":"'Цели оценки'!B11","v":0}]
["Кредитование, залоги",{"$f":"IF(C54=0,\" \",C45/C54)","v":" "},{"$f":"'Цели оценки'!C11","v":0}]
["Страхование",{"$f":"IF(C54=0,\" \",C46/C54)","v":" "},{"$f":"'Цели оценки'!D11","v":0}]
["Аренда",{"$f":"IF(C54=0,\" \",C47/C54)","v":" "},{"$f":"'Цели оценки'!E11","v":0}]
["Купля-продажа, сделки по слияниям и поглощениям",{"$f":"IF(C54=0,\" \",C48/C54)","v":" "},{"$f":"'Цели оценки'!F11","v":0}]
["Приватизация",{"$f":"IF(C54=0,\" \",C49/C54)","v":" "},{"$f":"'Цели оценки'!G11","v":0}]
["Банкротство, ликвидация",{"$f":"IF(C54=0,\" \",C50/C54)","v":" "},{"$f":"'Цели оценки'!H11","v":0}]
["Ипотека",{"$f":"IF(C54=0,\" \",C51/C54)","v":" "},{"$f":"'Цели оценки'!I11","v":0}]
["Оспаривание результатов государственной кадастровой оценки",{"$f":"IF(C54=0,\" \",C52/C54)","v":" "},{"$f":"'Цели оценки'!J11","v":0}]
["Другие ситуации",{"$f":"IF(C54=0,\" \",C53/C54)","v":" "},{"$f":"'Цели оценки'!K11","v":0}]
[{"$f":"'Цели оценки'!A11","v":"Всего по оценочной деятельности: "},{"$f":"SUM(B44:B53)","v":0},{"$f":"SUM(C44:C53)","v":0}]
[]
["Достоверность данных подтверждаю:"]
[null,null,"Место"]
[]
[{"$f":"'Общие сведения'!B117","v":0},null,"для"]
[{"$f":"'Общие сведения'!C117","v":0},null,"печати"]
["            (Подпись)"]